{"text_format":"3","workbook":"xlsx","n_sheets":3,"sheets":["Inventario probatorio","Activos probatorios","Responsabilidades probatorias"],"not_rendered":{"defined_names":1},"read":"whole","date_system":"1900"}

{"sheet":"Inventario probatorio","index":0,"n_rows":45,"n_cols":35,"rows_kept":45,"merged":[[0,1,0,30],[0,31,0,39],[1,1,5,39],[6,1,6,6],[6,7,6,39],[7,1,7,6],[7,7,7,39],[9,1,9,6],[9,7,9,39],[10,1,10,6],[10,7,10,39],[11,1,11,6],[11,7,11,20],[11,21,11,26],[11,27,11,30],[11,31,11,33],[11,34,11,39],[12,1,12,6],[12,7,12,20],[12,21,12,26],[13,1,13,6],[13,7,13,20],[13,21,13,26],[14,1,14,6],[14,7,14,20],[14,21,14,26],[15,1,15,6],[17,1,17,39],[18,1,18,6],[18,7,18,12],[18,13,18,15],[18,16,18,18],[18,19,18,26],[18,27,18,31],[18,32,18,39],[19,1,19,6],[19,7,19,12],[19,13,19,15],[19,16,19,18],[19,19,19,26],[19,27,19,31],[19,32,19,39],[20,1,20,6],[20,7,20,12],[20,13,20,15],[20,16,20,18],[20,19,20,26],[20,27,20,31],[20,32,20,39],[21,1,21,6],[21,7,21,12],[21,13,21,15],[21,16,21,18],[21,19,21,26],[21,27,21,31],[21,32,21,39],[22,1,22,6],[22,7,22,12],[22,13,22,15],[22,16,22,18],[22,19,22,26],[22,27,22,31],[22,32,22,39],[23,1,23,6],[23,7,23,12],[23,13,23,15],[23,16,23,18],[23,19,23,26],[23,27,23,31],[23,32,23,39],[25,1,25,39],[26,1,26,6],[26,7,26,12],[26,13,26,18],[26,19,26,26],[26,27,26,31],[26,32,26,39],[27,1,27,6],[27,7,27,12],[27,13,27,18],[27,19,27,26],[27,27,27,31],[27,32,27,39],[28,1,28,6],[28,7,28,12],[28,13,28,18],[28,19,28,26],[28,27,28,31],[28,32,28,39],[29,1,29,6],[29,7,29,12],[29,13,29,18],[29,19,29,26],[29,27,29,31],[29,32,29,39],[30,1,30,6],[30,7,30,12],[30,13,30,18],[30,19,30,26],[30,27,30,31],[30,32,30,39],[31,1,31,6],[31,7,31,12],[31,13,31,18],[31,19,31,26],[31,27,31,31],[31,32,31,39],[33,1,33,12],[33,14,33,39],[34,1,34,12],[34,14,34,21],[34,22,34,25],[34,26,34,33],[34,34,34,39],[35,2,35,12],[35,14,35,21],[35,22,35,25],[35,26,35,33],[35,34,35,39],[36,2,36,12],[36,14,36,21],[36,22,36,25],[36,26,36,33],[36,34,36,39],[37,2,37,12],[37,14,37,21],[37,22,37,25],[37,26,37,33],[37,34,37,39],[38,2,38,12],[38,14,38,21],[38,22,38,25],[38,26,38,33],[38,34,38,39],[39,2,39,12],[39,14,39,21],[39,22,39,25],[39,26,39,33],[39,34,39,39],[40,2,40,12],[40,14,40,21],[40,22,40,25],[40,26,40,33],[40,34,40,39],[41,2,41,12],[41,14,41,21],[41,22,41,25],[41,26,41,33],[41,34,41,39],[42,2,42,12],[42,14,42,21],[42,22,42,25],[42,26,42,33],[42,34,42,38],[43,2,43,12],[43,14,43,21],[43,22,43,25],[43,26,43,33],[43,34,43,39],[44,2,44,12],[44,14,44,21],[44,22,44,25],[44,26,44,33],[44,34,44,39]]}
[]
[null,"Inventario probatorio"]
[]
[]
[]
[]
[null,"Nombre de los ejecutores",{"$nulls":5},"Allan Mattsson"]
[null,"Información de contacto",{"$nulls":5},"4567 Main St, Buffalo, NY 98052"]
[]
[null,"Nombre del difunto",{"$nulls":5},"Íker Arteaga"]
[null,"Dirección",{"$nulls":5},"6789 Main St"]
[null,"Ciudad",{"$nulls":5},"Buffalo",{"$nulls":13},"Provincia",{"$nulls":5},"Málaga",{"$nulls":3},"Comprimir",null,null,98052]
[null,"NÚMERO DEL SEGURO SOCIAL",{"$nulls":5},"AAA-GG-SSSS",{"$nulls":13},"Profesión",{"$nulls":5},"Dentista"]
[null,"Fecha de nacimiento",{"$nulls":5},"1965-12-08",{"$nulls":13},"Lugar de nacimiento",{"$nulls":5},"Málaga"]
[null,"Fecha de defunción",{"$nulls":5},{"$f":"TODAY()-3","v":"2022-05-14"},{"$nulls":13},"Lugar de defunción",{"$nulls":5},"Málaga"]
[null,"Información adicional"]
[]
[null,"  Cónyuge, hijos y otras personas dependientes"]
[null,"Nombre",{"$nulls":5},"Relación",{"$nulls":5},"Dependiente",null,null,"Edad",null,null,"Dirección",{"$nulls":7},"Número de teléfono",{"$nulls":4},"Correo electrónico"]
[null,"Mirjam Nilsson",{"$nulls":5},"Representante personal",{"$nulls":5},"No",null,null,30]
[null,"Naiara Padilla",{"$nulls":5},"Cónyuge",{"$nulls":5},"Sí",null,null,35]
[null,"Andrés Delgadillo",{"$nulls":5},"Menor",{"$nulls":5},"Sí",null,null,12]
[]
[]
[]
[null,"Asesores profesionales"]
[null,"Tipo de asesor",{"$nulls":5},"Persona de contacto",{"$nulls":5},"Compañía",{"$nulls":5},"Dirección",{"$nulls":7},"Número de teléfono",{"$nulls":4},"Correo electrónico"]
[null,"Contable"]
[null,"Abogado/Notario"]
[null,"Otros"]
[]
[]
[]
[null,"  Lista de comprobación de testamentario",{"$nulls":12},"  Inventarios testamentarios"]
[null,"    Elementos de la lista de comprobación",{"$nulls":12},"Activos probatorios",{"$nulls":7},"Valor ($)",{"$nulls":3},"Responsabilidades probatorias",{"$nulls":7},"Valor ($)"]
[null,"✔","Última voluntad, testamento u otros documentos",{"$nulls":11},{"$f":"'Activos probatorios'!B12","v":"Cuenta bancaria"},{"$nulls":7},{"$f":"'Activos probatorios'!G20","v":{"v":0,"d":"$0.00"}},{"$nulls":3},{"$f":"'Responsabilidades probatorias'!B11","v":"Hipotecas"},{"$nulls":7},{"$f":"'Responsabilidades probatorias'!G18","v":{"v":0,"d":"$0.00"}}]
[null,"✔","Contrato de alquiler de depósito seguro y claves",{"$nulls":11},{"$f":"'Activos probatorios'!B22","v":"Inversiones personales"},{"$nulls":7},{"$f":"'Activos probatorios'!G30","v":{"v":0,"d":"$0.00"}},{"$nulls":3},{"$f":"'Responsabilidades probatorias'!B21","v":"Préstamos personales y líneas de crédito"},{"$nulls":7},{"$f":"'Responsabilidades probatorias'!G28","v":{"v":0,"d":"$0.00"}}]
[null,"✖","Contraseñas para equipos y cuentas en línea",{"$nulls":11},{"$f":"'Activos probatorios'!B32","v":"Intereses empresariales"},{"$nulls":7},{"$f":"'Activos probatorios'!G40","v":{"v":0,"d":"$0.00"}},{"$nulls":3},{"$f":"'Responsabilidades probatorias'!B31","v":"Intereses empresariales"},{"$nulls":7},{"$f":"'Responsabilidades probatorias'!G38","v":{"v":0,"d":"$0.00"}}]
[null,"✔","Contratos de fideicomiso en vida",{"$nulls":11},{"$f":"'Activos probatorios'!B42","v":"Bienes inmuebles"},{"$nulls":7},{"$f":"'Activos probatorios'!G50","v":{"v":0,"d":"$0.00"}},{"$nulls":3},{"$f":"'Responsabilidades probatorias'!B41","v":"Tarjetas de crédito"},{"$nulls":7},{"$f":"'Responsabilidades probatorias'!G48","v":{"v":0,"d":"$0.00"}}]
[null,"✔","Seguros de vida y pólizas de seguros médicos o de accidentes",{"$nulls":11},{"$f":"'Activos probatorios'!B52","v":"Planes de pensiones"},{"$nulls":7},{"$f":"'Activos probatorios'!G60","v":{"v":0,"d":"$0.00"}},{"$nulls":3},{"$f":"'Responsabilidades probatorias'!B51","v":"Otras responsabilidades"},{"$nulls":7},{"$f":"'Responsabilidades probatorias'!G58","v":{"v":0,"d":"$0.00"}}]
[null,"✔","Balances generales",{"$nulls":11},{"$f":"'Activos probatorios'!B62","v":"Seguro"},{"$nulls":7},{"$f":"'Activos probatorios'!G70","v":{"v":0,"d":"$0.00"}}]
[null,"✔","Declaraciones de impuestos sobre la renta de los últimos tres años",{"$nulls":11},{"$f":"'Activos probatorios'!B72","v":"Préstamos privados e hipotecas"},{"$nulls":7},{"$f":"'Activos probatorios'!G80","v":{"v":0,"d":"$0.00"}}]
[null,"✔","Certificados de nacimiento y defunción",{"$nulls":11},{"$f":"'Activos probatorios'!B82","v":"Intereses en otros patrimonios y fideicomisos"},{"$nulls":7},{"$f":"'Activos probatorios'!G90","v":{"v":0,"d":"$0.00"}}]
[null,"✖","Declaraciones de escrituras, estado de hipoteca y contratos de arrendamiento",{"$nulls":11},{"$f":"'Activos probatorios'!B92","v":"Efectos personales y otros activos"},{"$nulls":7},{"$f":"'Activos probatorios'!G100","v":{"v":0,"d":"$0.00"}}]
[null,"☐","Facturas y pagarés sin pagar",{"$nulls":11},"Total de activos",{"$nulls":7},{"$f":"'Activos probatorios'!G10","v":{"v":0,"d":"$0.00"}},{"$nulls":3},"Total de deudas",{"$nulls":7},{"$f":"SUM(AI36:AN44)","v":{"v":0,"d":"$0.00"}}]

{"sheet":"Activos probatorios","index":1,"n_rows":100,"n_cols":8,"rows_kept":100,"merged":[[0,1,0,7],[1,1,5,7],[6,1,7,7],[11,1,11,7],[12,1,12,7],[21,1,21,7],[22,1,22,7],[31,1,31,7],[32,1,32,7],[41,1,41,7],[42,1,42,7],[51,1,51,7],[52,1,52,7],[61,1,61,7],[62,1,62,7],[71,1,71,7],[72,1,72,7],[81,1,81,7],[82,1,82,7],[91,1,91,7],[92,1,92,7]]}
[]
[null,"Activos probatorios"]
[]
[]
[]
[]
[null,"Usa esta hoja de cálculo para crear un inventario de los activos probatorios. Deberás determinar el valor de mercado de cada activo del patrimonio en la fecha de defunción. Revisa todos los registros, incluidos los extractos financieros, las pólizas de seguros y las declaraciones fiscales para obtener los valores de mercado. Es posible que también necesites una tasación de afectos personales (es decir, obras de arte, colecciones, antigüedades, etc.). Asegúrate de incluir también los activos externos en el inventario, como bienes inmobiliarios, valores o intereses empresariales extranjeros. Es posible que desees obtener asistencia profesional para obtener un valor de mercado preciso para los activos externos."]
[]
[]
[null,"Activos totales",{"$nulls":4},{"$f":"tblBankAccounts[[#Totals],[Saldo ]]+tblPersonalInvestments[[#Totals],[Valor de mercado]]+tblBusinessInterests[[#Totals],[Valor ]]+tblRealEstate[[#Totals],[Precio de mercado]]+tblPensionPlans[[#Totals],[Valor ]]+tblInsurance[[#Totals],[Valor en efectivo ]]+tblMortgages[[#Totals],[Saldo debido ]]+tblTrusts[[#Totals],[Importe de distribución]]+tblOtherAssets[[#Totals],[Valor ]]","v":{"v":0,"d":"$0.00"}}]
[]
[null,"Cuenta bancaria"]
[null,"Enumera todas las cuentas bancarias e incluye el efectivo, los cheques de viajero, los giros postales y las cuentas con bancos comerciales, cajas de ahorros, uniones de crédito, etc. Incluye todos los nombres enumerados en la cuenta y el valor real en efectivo, que hace referencia al dólar exacto y al importe de cambio en el momento del fallecimiento."]
[null,"Institución financiera ","Dirección","Teléfono","Número de cuenta","Tipo de cuenta","Saldo ","Notas"]
[]
[]
[]
[]
[]
[null,"Total",{"$nulls":4},{"$f":"SUBTOTAL(109,tblBankAccounts[[Saldo ]])","v":{"v":0,"d":"$0.00"}}]
[]
[null,"Inversiones personales"]
[null,"Enumera las cuentas de efectivo, las cuentas de margen, las cartillas de ahorro desgravadas, los planes de ahorro previsionales registrados y bloqueados, los fondos de ingresos para jubilación registrados y bloqueados, los fondos de renta vitalicia, los fondos de ingresos de jubilación previstos, los planes registrados de ahorro para la educación, las anualidades, etc."]
[null,"Compañía","Dirección","Teléfono","Número de cuenta","Beneficiario","Valor de mercado","Notas"]
[]
[]
[]
[]
[]
[null,"Total",{"$nulls":4},{"$f":"SUBTOTAL(109,tblPersonalInvestments[Valor de mercado])","v":{"v":0,"d":"$0.00"}}]
[]
[null,"Intereses empresariales"]
[null,"Enumera todos los intereses empresariales, incluidas las empresas unipersonales, las prácticas profesionales, las empresas, las asociaciones, las empresas de responsabilidad limitada, las empresas conjuntas y otras entidades empresariales no negociadas públicamente. "]
[null,"Nombre de la empresa","Dirección","Teléfono","Contacto","Tipo","Valor ","Notas"]
[]
[]
[]
[]
[]
[null,"Total",{"$nulls":4},{"$f":"SUBTOTAL(109,tblBusinessInterests[[Valor ]])","v":{"v":0,"d":"$0.00"}}]
[]
[null,"Bienes inmuebles"]
[null,"Enumera todos los bienes inmuebles que pertenezcan al difunto o al cónyuge o pareja vivo, de los que sean propietarios conjuntos o en los que tuvieran algún interés, incluidas las propiedades adquiridas en centros recreativos y en régimen de tiempo compartido. Obtén copias de las escrituras. Proporciona una descripción de los bienes inmuebles con su dirección física. Enumera el valor normal de mercado de la propiedad, en función de la evaluación más reciente realizada por el asesor fiscal."]
[null,"Dirección","Propiedad en posesión de","Teléfono","Contacto","Precio de compra","Precio de mercado","Notas"]
[]
[]
[]
[]
[]
[null,"Total",{"$nulls":3},{"$f":"SUBTOTAL(109,tblRealEstate[Precio de compra])","v":{"v":0,"d":"$0.00"}},{"$f":"SUBTOTAL(109,tblRealEstate[Precio de mercado])","v":{"v":0,"d":"$0.00"}}]
[]
[null,"Planes de pensiones"]
[null,"Enumera las prestaciones definidas, el dinero de adquisición o las contribuciones definidas, los planes de aportaciones diferidas o los socios grupales que comparten el riesgo y los beneficios, etc."]
[null,"Compañía","Teléfono","Tipo de plan","Beneficiario","Correo electrónico","Valor ","Notas"]
[]
[]
[]
[]
[]
[null,"Total",{"$nulls":4},{"$f":"SUBTOTAL(109,tblPensionPlans[[Valor ]])","v":{"v":0,"d":"$0.00"}}]
[]
[null,"Seguro"]
[null,"Incluye fideicomisos en vida, pólizas de seguros de vida beneficiarios identificados y cuentas de inversión que se hayan transferido tras la defunción, como activos no probatorios. Si el tribunal consulta estos activos, el ejecutor puede consultar fácilmente la lista de activos no probatorios y explicar su ausencia del inventario de testamento."]
[null,"Emisor","Número de póliza","Teléfono","Beneficiario","Valor nominal ","Valor en efectivo ","Notas"]
[]
[]
[]
[]
[]
[null,"Total",{"$nulls":3},{"$f":"SUBTOTAL(109,tblInsurance[[Valor nominal ]])","v":{"v":0,"d":"$0.00"}},{"$f":"SUBTOTAL(109,tblInsurance[[Valor en efectivo ]])","v":{"v":0,"d":"$0.00"}}]
[]
[null,"Préstamos privados e hipotecas"]
[null,"Enumera los préstamos privados y las hipotecas de los que fuese prestadora la persona fallecida."]
[null,"Nombre del prestatario","Dirección","Teléfono","Tipo","Importe original","Saldo debido ","Notas"]
[]
[]
[]
[]
[]
[null,"Total",{"$nulls":3},{"$f":"SUBTOTAL(109,tblMortgages[Importe original])","v":{"v":0,"d":"$0.00"}},{"$f":"SUBTOTAL(109,tblMortgages[[Saldo debido ]])","v":{"v":0,"d":"$0.00"}}]
[]
[null,"Intereses en otros patrimonios y fideicomisos"]
[null,"Enumera los activos registrados con el nombre de la persona fallecida en nombre de otras personas (por ejemplo, activos poseídos por la persona fallecida como fideicomisario o activos poseídos con un poder notarial)."]
[null,"Nombre del patrimonio/fideicomiso","Nombre del ejecutor o fideicomisario","Teléfono","Dirección","Correo electrónico","Importe de distribución","Notas"]
[]
[]
[]
[]
[]
[null,"Total",{"$nulls":4},{"$f":"SUBTOTAL(109,tblTrusts[Importe de distribución])","v":{"v":0,"d":"$0.00"}}]
[]
[null,"Efectos personales y otros activos"]
[null,"Enumera todos los efectos personales, por ejemplo, coches, joyería, obras de arte, antigüedades, muebles. Incluye los efectos que puedan haberse guardado en una caja de seguridad o bajo custodia."]
[null,"Descripción del punto","Ubicación","Teléfono","Contacto","Beneficiario","Valor ","Notas"]
[]
[]
[]
[]
[]
[null,"Total",{"$nulls":4},{"$f":"SUBTOTAL(109,tblOtherAssets[[Valor ]])","v":{"v":0,"d":"$0.00"}}]

{"sheet":"Responsabilidades probatorias","index":2,"n_rows":58,"n_cols":8,"rows_kept":58,"merged":[[0,1,0,7],[1,1,5,7],[6,1,6,7],[10,1,10,7],[20,1,20,7],[30,1,30,7],[40,1,40,7],[50,1,50,7]]}
[]
[null,"Responsabilidades probatorias"]
[]
[]
[]
[]
[null,"Usa esta hoja de cálculo para capturar los detalles de los pasivos de los bienes inmuebles, tanto nacionales como externos. Necesitarás una calificaciones de cada bien inmueble en la fecha de defunción."]
[]
[null,"Activos totales",{"$nulls":4},{"$f":"SUM(G18,G28,G38,G48,G58)","v":{"v":0,"d":"$0.00"}}]
[]
[null,"Hipotecas"]
[null,"Institución financiera ","Dirección","Teléfono","Propiedad en posesión de","Número de cuenta","Saldo ","Notas"]
[]
[]
[]
[]
[]
[null,"Total",{"$nulls":4},{"$f":"SUBTOTAL(109,tblBankAccounts2[[Saldo ]])","v":{"v":0,"d":"$0.00"}}]
[]
[]
[null,"Préstamos personales y líneas de crédito"]
[null,"Institución financiera","Dirección","Teléfono"," Número de cuenta","Tipo","Saldo ","Notas"]
[]
[]
[]
[]
[]
[null,"Total",{"$nulls":4},{"$f":"SUBTOTAL(109,tblPersonalInvestments3[[Saldo ]])","v":{"v":0,"d":"$0.00"}}]
[]
[]
[null,"Intereses empresariales"]
[null,"Nombre de la empresa","Dirección"," Teléfono"," Contacto","Tipo","Valor ","Notas"]
[]
[]
[]
[]
[]
[null,"Total",{"$nulls":4},{"$f":"SUBTOTAL(109,tblBusinessInterests4[[Valor ]])","v":{"v":0,"d":"$0.00"}}]
[]
[]
[null,"Tarjetas de crédito"]
[null,"Empresa de la tarjeta de crédito","Dirección de la compañía","Teléfono","Número de tarjeta","Fecha de vencimiento ","Saldo ","Notas"]
[]
[]
[]
[]
[]
[null,"Total",{"$nulls":4},{"$f":"SUBTOTAL(109,tblRealEstate5[[Saldo ]])","v":{"v":0,"d":"$0.00"}}]
[]
[]
[null,"Otras responsabilidades"]
[null,"Descripción del punto","Ubicación","Teléfono","Contacto","Beneficiario","Valor ","Notas"]
[]
[]
[]
[]
[]
[null,"Total",{"$nulls":4},{"$f":"SUBTOTAL(109,tblPensionPlans6[[Valor ]])","v":{"v":0,"d":"$0.00"}}]